[Event "Titled Tuesday Blitz May 4 2021"]
[White "Kretov, Evgenij"]
[Black "Navalgund, Niranjan"]
[WhiteFideId "4167821"]
[BlackFideId "5030854"]
[WhiteElo "2381"]
[BlackElo "2290"]
[Result "0-1"]
[Round "04"]
[TimeControl "180+1"]
[Date "2021.05.04"]
[WhiteClock "0:01:22"]
[BlackClock "0:02:12"]

1. d4 {[%clk 0:03:00]}  Nf6 {[%clk 0:02:59]} 2. c4 {[%clk 0:03:00]}  e6 {[%clk 0:02:59]} 3. Nc3 {[%clk 0:03:01]}  Bb4 {[%clk 0:02:59]} 4. Bg5 {[%clk 0:03:01]}  c5 {[%clk 0:02:59]} 5. d5 {[%clk 0:03:00]}  h6 {[%clk 0:02:59]} 6. Bh4 {[%clk 0:03:00]}  b5 {[%clk 0:02:59]} 7. e3 {[%clk 0:03:00]}  O-O {[%clk 0:02:57]} 8. Nf3 {[%clk 0:02:56]}  bxc4 {[%clk 0:02:55]} 9. Bxc4 {[%clk 0:02:56]}  Ba6 {[%clk 0:02:55]} 10. Bxa6 {[%clk 0:02:56]}  Nxa6 {[%clk 0:02:56]} 11. O-O {[%clk 0:02:55]}  Bxc3 {[%clk 0:02:51]} 12. bxc3 {[%clk 0:02:54]}  exd5 {[%clk 0:02:51]} 13. Bxf6 {[%clk 0:02:48]}  Qxf6 {[%clk 0:02:52]} 14. Qxd5 {[%clk 0:02:41]}  Qxc3 {[%clk 0:02:52]} 15. Rfc1 {[%clk 0:02:33]}  Qf6 {[%clk 0:02:48]} 16. Qxd7 {[%clk 0:02:32]}  Rfd8 {[%clk 0:02:47]} 17. Qa4 {[%clk 0:02:24]}  Nb4 {[%clk 0:02:46]} 18. Rab1 {[%clk 0:02:17]}  Nd3 {[%clk 0:02:46]} 19. Rd1 {[%clk 0:02:15]}  Nb2 {[%clk 0:02:44]} 20. Rxd8+ {[%clk 0:02:14]}  Rxd8 {[%clk 0:02:45]} 21. Qxa7 {[%clk 0:02:12]}  c4 {[%clk 0:02:41]} 22. Nd4 {[%clk 0:02:05]}  c3 {[%clk 0:02:34]} 23. Qa3 {[%clk 0:01:59]}  Nd3 {[%clk 0:02:31]} 24. Rf1 {[%clk 0:01:53]}  Rc8 {[%clk 0:02:31]} 25. Nc2 {[%clk 0:01:51]}  Ne5 {[%clk 0:02:23]} 26. Qb3 {[%clk 0:01:42]}  Qg6 {[%clk 0:02:20]} 27. Rd1 {[%clk 0:01:33]}  Nf3+ {[%clk 0:02:19]} 28. Kh1 {[%clk 0:01:33]}  Qh5 {[%clk 0:02:16]} 29. h3 {[%clk 0:01:22]}  Nd2 {[%clk 0:02:12]} 0-1


[Site "https://www.chess.com"]

[Event "Titled Tuesday Blitz May 4 2021"]
[White "Krivonosov, Oleg"]
[Black "Alavkin, Arseny"]
[WhiteFideId "11600349"]
[BlackFideId "4120612"]
[WhiteElo "2703"]
[BlackElo "2575"]
[Result "1/2-1/2"]
[Round "04"]
[TimeControl "180+1"]
[Date "2021.05.04"]
[WhiteClock "0:01:32"]
[BlackClock "0:02:25"]

1. Nf3 {[%clk 0:03:00]}  Nf6 {[%clk 0:02:58]} 2. c4 {[%clk 0:03:00]}  g6 {[%clk 0:02:56]} 3. Nc3 {[%clk 0:02:59]}  Bg7 {[%clk 0:02:56]} 4. e4 {[%clk 0:02:59]}  d6 {[%clk 0:02:57]} 5. d4 {[%clk 0:02:59]}  O-O {[%clk 0:02:57]} 6. Be2 {[%clk 0:02:59]}  Na6 {[%clk 0:02:57]} 7. Bf4 {[%clk 0:02:58]}  Re8 {[%clk 0:02:41]} 8. O-O {[%clk 0:02:56]}  c6 {[%clk 0:02:41]} 9. Qd2 {[%clk 0:02:49]}  Nc7 {[%clk 0:02:40]} 10. h3 {[%clk 0:02:40]}  Nh5 {[%clk 0:02:35]} 11. Be3 {[%clk 0:02:38]}  e5 {[%clk 0:02:35]} 12. Rad1 {[%clk 0:02:31]}  Qe7 {[%clk 0:02:35]} 13. Rfe1 {[%clk 0:02:25]}  Ne6 {[%clk 0:02:33]} 14. Bf1 {[%clk 0:02:22]}  Nhf4 {[%clk 0:02:28]} 15. d5 {[%clk 0:02:17]}  cxd5 {[%clk 0:02:28]} 16. Nxd5 {[%clk 0:02:14]}  Nxd5 {[%clk 0:02:27]} 17. Qxd5 {[%clk 0:02:01]}  Rd8 {[%clk 0:02:26]} 18. Qd2 {[%clk 0:01:53]}  Bd7 {[%clk 0:02:25]} 19. Qxd6 {[%clk 0:01:42]}  Qxd6 {[%clk 0:02:26]} 20. Rxd6 {[%clk 0:01:41]}  Bc6 {[%clk 0:02:27]} 21. Rxd8+ {[%clk 0:01:39]}  Rxd8 {[%clk 0:02:28]} 22. Nd2 {[%clk 0:01:32]}  Bf8 {[%clk 0:02:25]} 1/2-1/2


[Site "https://www.chess.com"]

[Event "Titled Tuesday Blitz May 4 2021"]
[White "Lagunow, Raphael"]
[Black "Chabris, Christopher"]
[WhiteFideId "24652644"]
[BlackFideId "2005263"]
[WhiteElo "2400"]
[BlackElo "2283"]
[Result "1-0"]
[Round "04"]
[TimeControl "180+1"]
[Date "2021.05.04"]
[WhiteClock "0:00:09"]
[BlackClock "0:00:08"]

1. e4 {[%clk 0:03:00]}  c5 {[%clk 0:02:58]} 2. Nf3 {[%clk 0:03:00]}  d6 {[%clk 0:02:58]} 3. d4 {[%clk 0:02:59]}  cxd4 {[%clk 0:02:58]} 4. Nxd4 {[%clk 0:03:00]}  Nf6 {[%clk 0:02:59]} 5. Nc3 {[%clk 0:02:59]}  a6 {[%clk 0:02:59]} 6. Bg5 {[%clk 0:02:57]}  e6 {[%clk 0:02:58]} 7. f4 {[%clk 0:02:56]}  h6 {[%clk 0:02:58]} 8. Bh4 {[%clk 0:02:56]}  Qb6 {[%clk 0:02:58]} 9. Qd2 {[%clk 0:02:55]}  Qxb2 {[%clk 0:02:58]} 10. Rb1 {[%clk 0:02:55]}  Qa3 {[%clk 0:02:58]} 11. e5 {[%clk 0:02:55]}  dxe5 {[%clk 0:02:58]} 12. fxe5 {[%clk 0:02:56]}  Nd5 {[%clk 0:02:58]} 13. Nxd5 {[%clk 0:02:53]}  exd5 {[%clk 0:02:58]} 14. e6 {[%clk 0:02:53]}  Bxe6 {[%clk 0:02:50]} 15. Nxe6 {[%clk 0:02:53]}  fxe6 {[%clk 0:02:45]} 16. Bd3 {[%clk 0:02:53]}  Be7 {[%clk 0:02:37]} 17. Bg6+ {[%clk 0:02:07]}  Kd8 {[%clk 0:02:27]} 18. Bxe7+ {[%clk 0:01:33]}  Qxe7 {[%clk 0:02:08]} 19. O-O {[%clk 0:01:32]}  Rf8 {[%clk 0:01:14]} 20. Rxf8+ {[%clk 0:01:30]}  Qxf8 {[%clk 0:01:14]} 21. Rxb7 {[%clk 0:01:29]}  Qc5+ {[%clk 0:01:05]} 22. Kh1 {[%clk 0:01:26]}  Nd7 {[%clk 0:01:00]} 23. Qd3 {[%clk 0:00:29]}  Rb8 {[%clk 0:00:38]} 24. Qxa6 {[%clk 0:00:28]}  Rxb7 {[%clk 0:00:18]} 25. Qxb7 {[%clk 0:00:29]}  Qc3 {[%clk 0:00:17]} 26. Qb1 {[%clk 0:00:23]}  Ne5 {[%clk 0:00:16]} 27. Bd3 {[%clk 0:00:18]}  Qd2 {[%clk 0:00:14]} 28. h3 {[%clk 0:00:17]}  Qf2 {[%clk 0:00:11]} 29. a4 {[%clk 0:00:15]}  g5 {[%clk 0:00:08]} 30. Qb8+ {[%clk 0:00:09]}  Ke7 {[%clk 0:00:09]} 31. Qxe5 {[%clk 0:00:10]}  Qe1+ {[%clk 0:00:08]} 32. Qxe1 {[%clk 0:00:09]} 1-0


[Site "https://www.chess.com"]

[Event "Titled Tuesday Blitz May 4 2021"]
[White "Lamaze, Simon"]
[Black "serhanberat_ozdemir"]
[WhiteFideId "36069264"]
[WhiteElo "1938"]
[BlackElo "2608"]
[Result "0-1"]
[Round "04"]
[TimeControl "180+1"]
[Date "2021.05.04"]
[WhiteClock "0:00:42"]
[BlackClock "0:00:05"]

1. d4 {[%clk 0:03:00]}  Nf6 {[%clk 0:02:56]} 2. c4 {[%clk 0:03:00]}  g6 {[%clk 0:02:57]} 3. Nc3 {[%clk 0:02:55]}  Bg7 {[%clk 0:02:57]} 4. Bf4 {[%clk 0:02:52]}  O-O {[%clk 0:02:56]} 5. e3 {[%clk 0:02:52]}  c5 {[%clk 0:02:56]} 6. Nf3 {[%clk 0:02:51]}  cxd4 {[%clk 0:02:55]} 7. exd4 {[%clk 0:02:50]}  d5 {[%clk 0:02:55]} 8. c5 {[%clk 0:02:45]}  Nc6 {[%clk 0:02:54]} 9. Be2 {[%clk 0:02:43]}  Bf5 {[%clk 0:02:43]} 10. O-O {[%clk 0:02:43]}  Ne4 {[%clk 0:02:42]} 11. h3 {[%clk 0:02:40]}  Qd7 {[%clk 0:02:24]} 12. Bb5 {[%clk 0:02:37]}  Nxc3 {[%clk 0:02:17]} 13. bxc3 {[%clk 0:02:35]}  Qc8 {[%clk 0:02:09]} 14. Re1 {[%clk 0:02:23]}  Re8 {[%clk 0:02:07]} 15. Ne5 {[%clk 0:02:19]}  f6 {[%clk 0:01:39]} 16. Nf3 {[%clk 0:02:02]}  Be4 {[%clk 0:01:19]} 17. Bd3 {[%clk 0:01:57]}  e5 {[%clk 0:01:14]} 18. Bh2 {[%clk 0:01:51]}  Bxd3 {[%clk 0:01:14]} 19. dxe5 {[%clk 0:01:45]}  Be4 {[%clk 0:01:09]} 20. c4 {[%clk 0:01:44]}  Bxf3 {[%clk 0:00:47]} 21. Qxf3 {[%clk 0:01:42]}  fxe5 {[%clk 0:00:47]} 22. cxd5 {[%clk 0:01:40]}  Nd4 {[%clk 0:00:48]} 23. Qc3 {[%clk 0:01:38]}  e4 {[%clk 0:00:43]} 24. Qc4 {[%clk 0:01:37]}  Kh8 {[%clk 0:00:39]} 25. Rad1 {[%clk 0:01:32]}  Nf5 {[%clk 0:00:37]} 26. d6 {[%clk 0:01:33]}  Qc6 {[%clk 0:00:35]} 27. Bf4 {[%clk 0:01:23]}  Rad8 {[%clk 0:00:33]} 28. Kh2 {[%clk 0:01:21]}  b6 {[%clk 0:00:30]} 29. Bg5 {[%clk 0:01:11]}  Rd7 {[%clk 0:00:26]} 30. Qd5 {[%clk 0:01:11]}  Qxd5 {[%clk 0:00:25]} 31. Rxd5 {[%clk 0:01:11]}  bxc5 {[%clk 0:00:26]} 32. g4 {[%clk 0:01:05]}  Rxd6 {[%clk 0:00:22]} 33. Rxc5 {[%clk 0:01:02]}  Nd4 {[%clk 0:00:22]} 34. Kh1 {[%clk 0:00:53]}  Nf3 {[%clk 0:00:22]} 35. Be7 {[%clk 0:00:53]}  Rxe7 {[%clk 0:00:17]} 36. Rc8+ {[%clk 0:00:52]}  Bf8 {[%clk 0:00:17]} 37. Rxf8+ {[%clk 0:00:53]}  Kg7 {[%clk 0:00:18]} 38. Rxf3 {[%clk 0:00:54]}  Rd2 {[%clk 0:00:10]} 39. Rf4 {[%clk 0:00:51]}  Rxa2 {[%clk 0:00:09]} 40. Kg1 {[%clk 0:00:50]}  e3 {[%clk 0:00:08]} 41. Rxe3 {[%clk 0:00:50]}  Rxe3 {[%clk 0:00:08]} 42. fxe3 {[%clk 0:00:51]}  a5 {[%clk 0:00:08]} 43. g5 {[%clk 0:00:50]}  a4 {[%clk 0:00:08]} 44. h4 {[%clk 0:00:50]}  h6 {[%clk 0:00:08]} 45. Rc4 {[%clk 0:00:49]}  hxg5 {[%clk 0:00:08]} 46. hxg5 {[%clk 0:00:50]}  Kf7 {[%clk 0:00:09]} 47. Rc6 {[%clk 0:00:50]}  a3 {[%clk 0:00:09]} 48. Rf6+ {[%clk 0:00:49]}  Kg7 {[%clk 0:00:08]} 49. Ra6 {[%clk 0:00:50]}  Kf7 {[%clk 0:00:08]} 50. e4 {[%clk 0:00:49]}  Ke7 {[%clk 0:00:07]} 51. Rxg6 {[%clk 0:00:48]}  Rb2 {[%clk 0:00:06]} 52. Ra6 {[%clk 0:00:40]}  a2 {[%clk 0:00:05]} 53. Ra7+ {[%clk 0:00:41]}  Ke6 {[%clk 0:00:05]} 54. Ra6+ {[%clk 0:00:41]}  Kf7 {[%clk 0:00:05]} 55. Ra7+ {[%clk 0:00:41]}  Kg6 {[%clk 0:00:05]} 56. Ra6+ {[%clk 0:00:41]}  Kxg5 {[%clk 0:00:06]} 57. Ra5+ {[%clk 0:00:41]}  Kf4 {[%clk 0:00:06]} 58. Ra4 {[%clk 0:00:42]}  Rb1+ {[%clk 0:00:05]} 0-1


[Site "https://www.chess.com"]

[Event "Titled Tuesday Blitz May 4 2021"]
[White "Landaw, Julian"]
[Black "Kett, Tim"]
[WhiteFideId "2023342"]
[BlackFideId "1801210"]
[WhiteElo "2312"]
[BlackElo "2098"]
[Result "1-0"]
[Round "04"]
[TimeControl "180+1"]
[Date "2021.05.04"]
[WhiteClock "0:00:24"]
[BlackClock "0:00:02"]

1. e4 {[%clk 0:03:00]}  e5 {[%clk 0:02:59]} 2. Nf3 {[%clk 0:03:00]}  Nc6 {[%clk 0:02:59]} 3. Bb5 {[%clk 0:03:00]}  a6 {[%clk 0:02:54]} 4. Ba4 {[%clk 0:02:59]}  Nf6 {[%clk 0:02:53]} 5. O-O {[%clk 0:02:59]}  Be7 {[%clk 0:02:47]} 6. Re1 {[%clk 0:02:59]}  b5 {[%clk 0:02:46]} 7. Bb3 {[%clk 0:02:59]}  d6 {[%clk 0:02:47]} 8. c3 {[%clk 0:02:58]}  O-O {[%clk 0:02:47]} 9. h3 {[%clk 0:02:58]}  Nd7 {[%clk 0:02:45]} 10. d4 {[%clk 0:02:50]}  Bf6 {[%clk 0:02:44]} 11. Be3 {[%clk 0:02:38]}  Bb7 {[%clk 0:02:38]} 12. Nbd2 {[%clk 0:02:37]}  Nb6 {[%clk 0:02:35]} 13. Nf1 {[%clk 0:02:25]}  Na5 {[%clk 0:02:34]} 14. Bc2 {[%clk 0:02:25]}  Nac4 {[%clk 0:02:31]} 15. Bc1 {[%clk 0:02:24]}  exd4 {[%clk 0:02:19]} 16. cxd4 {[%clk 0:02:21]}  c5 {[%clk 0:02:19]} 17. b3 {[%clk 0:01:35]}  Na5 {[%clk 0:02:16]} 18. Ne3 {[%clk 0:01:35]}  cxd4 {[%clk 0:02:01]} 19. Nxd4 {[%clk 0:01:24]}  Nc6 {[%clk 0:02:01]} 20. Bb2 {[%clk 0:01:20]}  Rc8 {[%clk 0:01:48]} 21. Rc1 {[%clk 0:01:02]}  Re8 {[%clk 0:01:38]} 22. Nef5 {[%clk 0:00:48]}  Nxd4 {[%clk 0:01:29]} 23. Bxd4 {[%clk 0:00:45]}  Bxd4 {[%clk 0:01:23]} 24. Qxd4 {[%clk 0:00:45]}  Re5 {[%clk 0:01:15]} 25. Nxd6 {[%clk 0:00:35]}  Re6 {[%clk 0:01:01]} 26. Nf5 {[%clk 0:00:26]}  Qxd4 {[%clk 0:01:00]} 27. Nxd4 {[%clk 0:00:27]}  Ree8 {[%clk 0:00:42]} 28. Nf5 {[%clk 0:00:27]}  Rcd8 {[%clk 0:00:31]} 29. Rcd1 {[%clk 0:00:27]}  Rxd1 {[%clk 0:00:30]} 30. Rxd1 {[%clk 0:00:28]}  g6 {[%clk 0:00:14]} 31. Nd6 {[%clk 0:00:27]}  Re7 {[%clk 0:00:14]} 32. Nxb7 {[%clk 0:00:26]}  Rxb7 {[%clk 0:00:15]} 33. e5 {[%clk 0:00:26]}  Re7 {[%clk 0:00:14]} 34. f4 {[%clk 0:00:26]}  Kg7 {[%clk 0:00:13]} 35. Rd6 {[%clk 0:00:27]}  Nc8 {[%clk 0:00:11]} 36. Rc6 {[%clk 0:00:27]}  Na7 {[%clk 0:00:09]} 37. Rxa6 {[%clk 0:00:27]}  Rc7 {[%clk 0:00:09]} 38. Be4 {[%clk 0:00:26]}  Nc8 {[%clk 0:00:05]} 39. Rc6 {[%clk 0:00:26]}  Rxc6 {[%clk 0:00:04]} 40. Bxc6 {[%clk 0:00:27]}  b4 {[%clk 0:00:05]} 41. Kf2 {[%clk 0:00:26]}  Kf8 {[%clk 0:00:02]} 42. Ke3 {[%clk 0:00:26]}  Ke7 {[%clk 0:00:03]} 43. Kd4 {[%clk 0:00:24]}  Kd8 {[%clk 0:00:03]} 44. Kc5 {[%clk 0:00:24]}  Kc7 {[%clk 0:00:02]} 45. Bd5 {[%clk 0:00:24]} 1-0


[Site "https://www.chess.com"]

[Event "Titled Tuesday Blitz May 4 2021"]
[White "Lauridsen, Jesper Morch"]
[Black "Marcinczyk, Monika"]
[WhiteFideId "1401890"]
[BlackFideId "1192051"]
[WhiteElo "2268"]
[BlackElo "1640"]
[Result "1-0"]
[Round "04"]
[TimeControl "180+1"]
[Date "2021.05.04"]
[WhiteClock "0:00:18"]
[BlackClock "0:00:01"]

1. e4 {[%clk 0:03:00]}  c5 {[%clk 0:02:58]} 2. Nc3 {[%clk 0:02:58]}  Nc6 {[%clk 0:02:56]} 3. Nf3 {[%clk 0:02:58]}  g6 {[%clk 0:02:55]} 4. d4 {[%clk 0:02:57]}  cxd4 {[%clk 0:02:53]} 5. Nxd4 {[%clk 0:02:58]}  Bg7 {[%clk 0:02:54]} 6. Be3 {[%clk 0:02:58]}  Nf6 {[%clk 0:02:46]} 7. Bc4 {[%clk 0:02:56]}  Qa5 {[%clk 0:02:43]} 8. O-O {[%clk 0:02:54]}  d6 {[%clk 0:02:35]} 9. f3 {[%clk 0:02:42]}  O-O {[%clk 0:02:31]} 10. Bb3 {[%clk 0:02:41]}  Nd7 {[%clk 0:02:11]} 11. Nd5 {[%clk 0:02:35]}  Re8 {[%clk 0:01:59]} 12. Kh1 {[%clk 0:02:27]}  Nc5 {[%clk 0:01:32]} 13. Nxc6 {[%clk 0:02:21]}  bxc6 {[%clk 0:01:32]} 14. Bxc5 {[%clk 0:02:14]}  cxd5 {[%clk 0:01:30]} 15. Bd4 {[%clk 0:01:58]}  dxe4 {[%clk 0:01:24]} 16. Bxg7 {[%clk 0:01:53]}  Kxg7 {[%clk 0:01:23]} 17. fxe4 {[%clk 0:01:53]}  f6 {[%clk 0:01:13]} 18. c3 {[%clk 0:01:44]}  Ba6 {[%clk 0:01:11]} 19. Rf2 {[%clk 0:01:42]}  Qe5 {[%clk 0:01:07]} 20. Qf3 {[%clk 0:01:41]}  Rac8 {[%clk 0:00:47]} 21. Rd1 {[%clk 0:01:40]}  Bc4 {[%clk 0:00:38]} 22. Bxc4 {[%clk 0:01:32]}  Rxc4 {[%clk 0:00:37]} 23. Re2 {[%clk 0:01:21]}  Rb8 {[%clk 0:00:28]} 24. Qd3 {[%clk 0:01:01]}  Ra4 {[%clk 0:00:18]} 25. a3 {[%clk 0:00:59]}  Qe6 {[%clk 0:00:12]} 26. h3 {[%clk 0:00:47]}  Ra5 {[%clk 0:00:11]} 27. Qd4 {[%clk 0:00:40]}  Qb3 {[%clk 0:00:09]} 28. Rde1 {[%clk 0:00:34]}  Ra4 {[%clk 0:00:05]} 29. Qf2 {[%clk 0:00:29]}  Qe6 {[%clk 0:00:03]} 30. Kg1 {[%clk 0:00:27]}  Ra5 {[%clk 0:00:03]} 31. Rd2 {[%clk 0:00:25]}  a6 {[%clk 0:00:03]} 32. Rd5 {[%clk 0:00:23]}  Rab5 {[%clk 0:00:01]} 33. b4 {[%clk 0:00:18]} 1-0


[Site "https://www.chess.com"]

[Event "Titled Tuesday Blitz May 4 2021"]
[White "Laxman, R.R."]
[Black "Balaji, Aaravamudhan"]
[WhiteFideId "5005361"]
[BlackFideId "436224"]
[WhiteElo "2476"]
[BlackElo "2085"]
[Result "0-1"]
[Round "04"]
[TimeControl "180+1"]
[Date "2021.05.04"]
[WhiteClock "0:02:26"]
[BlackClock "0:01:24"]

1. d4 {[%clk 0:03:00]}  g6 {[%clk 0:03:00]} 2. e4 {[%clk 0:03:00]}  Bg7 {[%clk 0:03:01]} 3. Nf3 {[%clk 0:03:00]}  a6 {[%clk 0:03:01]} 4. c4 {[%clk 0:02:59]}  d6 {[%clk 0:03:00]} 5. Nc3 {[%clk 0:02:59]}  Nc6 {[%clk 0:03:00]} 6. d5 {[%clk 0:02:59]}  Ne5 {[%clk 0:03:00]} 7. Nxe5 {[%clk 0:02:59]}  Bxe5 {[%clk 0:03:01]} 8. Be2 {[%clk 0:03:00]}  Bg7 {[%clk 0:03:00]} 9. O-O {[%clk 0:02:59]}  Nf6 {[%clk 0:02:58]} 10. f4 {[%clk 0:02:59]}  O-O {[%clk 0:02:58]} 11. e5 {[%clk 0:02:58]}  dxe5 {[%clk 0:02:55]} 12. fxe5 {[%clk 0:02:58]}  Nd7 {[%clk 0:02:55]} 13. e6 {[%clk 0:02:59]}  fxe6 {[%clk 0:02:35]} 14. dxe6 {[%clk 0:02:59]}  Nf6 {[%clk 0:02:04]} 15. Qb3 {[%clk 0:02:58]}  Bxe6 {[%clk 0:01:53]} 16. Qxb7 {[%clk 0:02:58]}  Qd4+ {[%clk 0:01:47]} 17. Kh1 {[%clk 0:02:57]}  Ng4 {[%clk 0:01:46]} 18. Ne4 {[%clk 0:02:33]}  Rxf1+ {[%clk 0:01:37]} 19. Bxf1 {[%clk 0:02:34]}  Qxe4 {[%clk 0:01:36]} 20. Qxe4 {[%clk 0:02:33]}  Nf2+ {[%clk 0:01:36]} 21. Kg1 {[%clk 0:02:33]}  Nxe4 {[%clk 0:01:37]} 22. Be3 {[%clk 0:02:31]}  Rd8 {[%clk 0:01:35]} 23. Re1 {[%clk 0:02:30]}  Bd4 {[%clk 0:01:31]} 24. b3 {[%clk 0:02:28]}  Bf7 {[%clk 0:01:29]} 25. g3 {[%clk 0:02:26]}  Kf8 {[%clk 0:01:27]} 26. Bg2 {[%clk 0:02:26]}  Bxe3+ {[%clk 0:01:25]} 27. Rxe3 {[%clk 0:02:26]}  Rd1+ {[%clk 0:01:24]} 0-1


[Site "https://www.chess.com"]

[Event "Titled Tuesday Blitz May 4 2021"]
[White "Ljukin, Sergei"]
[Black "Wagner, Dennis"]
[WhiteFideId "14102200"]
[BlackFideId "24650684"]
[WhiteElo "2287"]
[BlackElo "2355"]
[Result "0-1"]
[Round "04"]
[TimeControl "180+1"]
[Date "2021.05.04"]
[WhiteClock "0:00:07"]
[BlackClock "0:00:23"]

1. e4 {[%clk 0:03:00]}  e5 {[%clk 0:02:59]} 2. Nf3 {[%clk 0:03:01]}  Nc6 {[%clk 0:02:58]} 3. Bb5 {[%clk 0:03:00]}  Nf6 {[%clk 0:02:58]} 4. Qe2 {[%clk 0:03:00]}  d6 {[%clk 0:02:52]} 5. c3 {[%clk 0:02:59]}  Bd7 {[%clk 0:02:50]} 6. O-O {[%clk 0:02:59]}  g6 {[%clk 0:02:49]} 7. d4 {[%clk 0:02:57]}  Bg7 {[%clk 0:02:42]} 8. Bxc6 {[%clk 0:02:48]}  Bxc6 {[%clk 0:02:40]} 9. dxe5 {[%clk 0:02:48]}  Nxe4 {[%clk 0:02:32]} 10. Nd4 {[%clk 0:02:26]}  d5 {[%clk 0:02:15]} 11. Nd2 {[%clk 0:02:14]}  Nxd2 {[%clk 0:01:35]} 12. Bxd2 {[%clk 0:02:12]}  O-O {[%clk 0:01:34]} 13. Nxc6 {[%clk 0:02:08]}  bxc6 {[%clk 0:01:34]} 14. f4 {[%clk 0:02:08]}  Re8 {[%clk 0:01:33]} 15. Be3 {[%clk 0:01:58]}  a5 {[%clk 0:01:31]} 16. Bd4 {[%clk 0:01:53]}  Rb8 {[%clk 0:01:29]} 17. b3 {[%clk 0:01:51]}  f6 {[%clk 0:01:25]} 18. Rae1 {[%clk 0:01:47]}  fxe5 {[%clk 0:01:22]} 19. Bxe5 {[%clk 0:01:40]}  Bxe5 {[%clk 0:01:21]} 20. fxe5 {[%clk 0:01:40]}  Re6 {[%clk 0:01:21]} 21. Rf3 {[%clk 0:00:59]}  Qe7 {[%clk 0:01:18]} 22. Re3 {[%clk 0:00:59]}  Rf8 {[%clk 0:01:16]} 23. Qg4 {[%clk 0:00:51]}  Rf5 {[%clk 0:01:13]} 24. Qg3 {[%clk 0:00:48]}  Qc5 {[%clk 0:01:09]} 25. Kh1 {[%clk 0:00:43]}  Kg7 {[%clk 0:01:08]} 26. h3 {[%clk 0:00:43]}  Qa3 {[%clk 0:01:03]} 27. R1e2 {[%clk 0:00:42]}  Rf1+ {[%clk 0:00:56]} 28. Kh2 {[%clk 0:00:42]}  Qc1 {[%clk 0:00:56]} 29. Qg5 {[%clk 0:00:26]}  Rf7 {[%clk 0:00:30]} 30. Qg4 {[%clk 0:00:16]}  Rf5 {[%clk 0:00:28]} 31. Qa4 {[%clk 0:00:13]}  Qf1 {[%clk 0:00:23]} 32. Qxa5 {[%clk 0:00:07]}  Qf4+ {[%clk 0:00:23]} 0-1


[Site "https://www.chess.com"]

[Event "Titled Tuesday Blitz May 4 2021"]
[White "Lomaia, Diana"]
[Black "Shukhman, Anna"]
[WhiteFideId "13612476"]
[BlackFideId "54180058"]
[WhiteElo "1742"]
[BlackElo "1628"]
[Result "0-1"]
[Round "04"]
[TimeControl "180+1"]
[Date "2021.05.04"]
[WhiteClock "0:00:07"]
[BlackClock "0:00:22"]

1. d4 {[%clk 0:03:00]}  f5 {[%clk 0:02:59]} 2. c4 {[%clk 0:03:00]}  Nf6 {[%clk 0:02:59]} 3. Nf3 {[%clk 0:03:00]}  g6 {[%clk 0:03:00]} 4. g3 {[%clk 0:03:01]}  Bg7 {[%clk 0:03:01]} 5. Bg2 {[%clk 0:03:02]}  O-O {[%clk 0:03:01]} 6. O-O {[%clk 0:03:02]}  d6 {[%clk 0:03:02]} 7. Nc3 {[%clk 0:03:02]}  Qe8 {[%clk 0:03:02]} 8. Re1 {[%clk 0:02:50]}  Qf7 {[%clk 0:03:00]} 9. Qb3 {[%clk 0:02:28]}  Ne4 {[%clk 0:02:59]} 10. Nd5 {[%clk 0:02:16]}  Na6 {[%clk 0:02:55]} 11. Ng5 {[%clk 0:02:06]}  Nxg5 {[%clk 0:02:52]} 12. Bxg5 {[%clk 0:02:06]}  h6 {[%clk 0:02:45]} 13. Nxe7+ {[%clk 0:01:59]}  Kh7 {[%clk 0:02:44]} 14. Bd5 {[%clk 0:01:58]}  Qe8 {[%clk 0:02:42]} 15. Nxc8 {[%clk 0:01:50]}  Rxc8 {[%clk 0:02:35]} 16. Bd2 {[%clk 0:01:41]}  c6 {[%clk 0:02:30]} 17. Bg2 {[%clk 0:01:28]}  Qe7 {[%clk 0:02:22]} 18. Bc3 {[%clk 0:01:27]}  f4 {[%clk 0:02:18]} 19. e4 {[%clk 0:01:20]}  fxg3 {[%clk 0:02:12]} 20. hxg3 {[%clk 0:01:19]}  c5 {[%clk 0:02:10]} 21. d5 {[%clk 0:01:15]}  Qf7 {[%clk 0:02:02]} 22. Re2 {[%clk 0:01:14]}  Bxc3 {[%clk 0:01:32]} 23. Qxc3 {[%clk 0:01:12]}  Nc7 {[%clk 0:01:32]} 24. f4 {[%clk 0:00:59]}  b5 {[%clk 0:01:29]} 25. b3 {[%clk 0:00:58]}  g5 {[%clk 0:01:26]} 26. Rf1 {[%clk 0:00:56]}  b4 {[%clk 0:01:21]} 27. Qc2 {[%clk 0:00:53]}  Qg6 {[%clk 0:01:19]} 28. f5 {[%clk 0:00:48]}  Qf6 {[%clk 0:01:18]} 29. e5 {[%clk 0:00:43]}  dxe5 {[%clk 0:01:17]} 30. Qe4 {[%clk 0:00:34]}  Rce8 {[%clk 0:01:15]} 31. Bh3 {[%clk 0:00:31]}  Re7 {[%clk 0:01:12]} 32. Rd1 {[%clk 0:00:31]}  Ne8 {[%clk 0:01:11]} 33. Qe3 {[%clk 0:00:30]}  Qd6 {[%clk 0:01:09]} 34. Qd3 {[%clk 0:00:27]}  Nf6 {[%clk 0:01:08]} 35. Rde1 {[%clk 0:00:23]}  Rfe8 {[%clk 0:01:06]} 36. Qe3 {[%clk 0:00:19]}  e4 {[%clk 0:01:05]} 37. a3 {[%clk 0:00:18]}  bxa3 {[%clk 0:01:01]} 38. Ra2 {[%clk 0:00:18]}  Qe5 {[%clk 0:00:49]} 39. Rxa3 {[%clk 0:00:17]}  Qd4 {[%clk 0:00:48]} 40. Ra6 {[%clk 0:00:16]}  Kg7 {[%clk 0:00:47]} 41. Kf2 {[%clk 0:00:14]}  Rb7 {[%clk 0:00:46]} 42. Rb1 {[%clk 0:00:12]}  Reb8 {[%clk 0:00:40]} 43. Re6 {[%clk 0:00:09]}  Qxe3+ {[%clk 0:00:39]} 44. Kxe3 {[%clk 0:00:08]}  Rxb3+ {[%clk 0:00:40]} 45. Rxb3 {[%clk 0:00:09]}  Rxb3+ {[%clk 0:00:41]} 46. Kf2 {[%clk 0:00:09]}  Rb2+ {[%clk 0:00:39]} 47. Ke3 {[%clk 0:00:09]}  Rb3+ {[%clk 0:00:38]} 48. Kf2 {[%clk 0:00:08]}  Kf7 {[%clk 0:00:38]} 49. Rc6 {[%clk 0:00:07]}  Rb2+ {[%clk 0:00:37]} 50. Ke3 {[%clk 0:00:07]}  Rb3+ {[%clk 0:00:37]} 51. Kf2 {[%clk 0:00:07]}  e3+ {[%clk 0:00:26]} 52. Ke2 {[%clk 0:00:07]}  Ne4 {[%clk 0:00:26]} 53. Rc7+ {[%clk 0:00:07]}  Kf6 {[%clk 0:00:25]} 54. Rc6+ {[%clk 0:00:07]}  Ke5 {[%clk 0:00:23]} 55. Re6+ {[%clk 0:00:06]}  Kd4 {[%clk 0:00:23]} 56. Bg2 {[%clk 0:00:06]}  Nxg3+ {[%clk 0:00:22]} 57. Ke1 {[%clk 0:00:07]}  Rb1# {[%clk 0:00:22]} 0-1


[Site "https://www.chess.com"]